bitfinex/quotes_BTCUSD_20220105
["timestamp","ask_amount","ask_price","bid_price","bid_amount"]
[1641389267956,7.623e-05,46339.0,46334.0,0.354543]
[1641389268156,7.623e-05,46339.0,46333.0,0.34869373]
[1641389268359,7.623e-05,46339.0,46338.0,0.28406742]
[1641389268556,7.623e-05,46339.0,46338.0,0.63861042]
[1641389269557,7.623e-05,46339.0,46338.0,0.574543]
[1641389269757,7.623e-05,46339.0,46338.0,0.22]
[1641389275958,7.623e-05,46339.0,46338.0,0.49490704]
[1641389277558,7.623e-05,46339.0,46338.0,0.22]
[1641389277961,0.10048612,46341.0,46338.0,0.22]
[1641389278161,0.05394853,46340.0,46338.0,0.273947]
[1641389278362,0.05394853,46340.0,46338.0,0.22]
[1641389281909,0.20443112,46341.0,46338.0,0.22]
[1641389282965,0.0539487,46340.0,46338.0,0.22]
[1641389283360,0.0539487,46340.0,46339.0,2.03766818]
[1641389284163,0.0539487,46340.0,46339.0,1.2199917]
[1641389284361,0.25691099,46341.0,46339.0,1.2199917]
[1641389284763,0.25691099,46341.0,46339.0,2.04142744]
[1641389285762,0.20691099,46341.0,46339.0,2.04142744]
[1641389286163,0.20691099,46341.0,46340.0,0.82143574]
[1641389286614,0.15296523,46341.0,46340.0,0.82143574]
[1641389286812,0.15296523,46341.0,46340.0,1.2199917]
[1641389287012,0.15303664,46341.0,46340.0,1.2199917]
[1641389287415,0.15303664,46341.0,46339.0,1.2199917]
[1641389288015,0.15011477,46341.0,46339.0,1.2199917]
[1641389288313,0.15011477,46341.0,46340.0,0.354543]
[1641389288314,0.09909164,46341.0,46340.0,0.354543]
[1641389288513,0.09909164,46341.0,46340.0,0.75711748]
[1641389288713,0.09909164,46341.0,46340.0,0.354543]
[1641389288915,0.09909164,46341.0,46339.0,1.2199917]
[1641389289214,0.09909164,46341.0,46340.0,2.33576593]
[1641389289613,0.09909164,46341.0,46340.0,1.57576593]
[1641389289815,0.05401541,46341.0,46340.0,1.57576593]
[1641389290116,7.141e-05,46341.0,46340.0,1.72969893]
[1641389290560,7.141e-05,46341.0,46340.0,2.14969893]
[1641389290958,7.141e-05,46341.0,46340.0,2.06587374]
[1641389292660,1.41e-06,46341.0,46340.0,2.06587374]
[1641389292867,1.41e-06,46341.0,46340.0,2.15031249]
[1641389293061,1.41e-06,46341.0,46340.0,1.86413768]
[1641389293262,0.01259503,46356.0,46340.0,2.93902593]
[1641389293465,0.01259503,46356.0,46348.0,0.053924]
[1641389293761,0.01259503,46356.0,46354.0,0.27964108]
[1641389294025,0.01259503,46356.0,46355.0,0.354543]
[1641389294229,0.01259503,46356.0,46354.0,0.27964108]
[1641389294230,0.107847,46356.0,46354.0,0.27964108]
[1641389294425,0.107847,46356.0,46354.0,0.33356608]
[1641389294624,0.107847,46356.0,46355.0,0.354543]
[1641389295025,0.157847,46356.0,46355.0,0.354543]
[1641389296027,0.152847,46356.0,46355.0,0.354543]
[1641389296431,0.05,46355.0,46354.0,0.33356608]
[1641389296729,0.05,46355.0,46354.0,0.68810908]
[1641389297429,0.05,46355.0,46354.0,0.053925]
[1641389297633,0.05007677,46355.0,46354.0,0.053925]
[1641389297859,0.10400977,46355.0,46352.0,0.053933]
[1641389298066,0.10786578,46354.0,46352.0,0.053933]
[1641389298459,0.05393278,46354.0,46352.0,0.053933]
[1641389298658,0.05,46353.0,46352.0,0.053933]
[1641389298861,0.05,46353.0,46352.0,0.408476]
[1641389299359,0.15393278,46354.0,46352.0,0.408476]
[1641389300962,0.10393278,46354.0,46352.0,0.408476]
[1641389301365,0.05,46354.0,46352.0,0.408476]
[1641389301810,0.10550721,46355.0,46352.0,0.408476]
[1641389302010,0.05550721,46355.0,46352.0,0.408476]
[1641389302612,0.10943302,46355.0,46352.0,0.408476]
[1641389302811,0.10943302,46355.0,46352.0,0.628476]
[1641389303013,0.15943302,46355.0,46352.0,1.21035315]
[1641389303216,0.10550721,46355.0,46352.0,1.21035315]
[1641389303415,0.21337089,46355.0,46352.0,1.21035315]
[1641389303815,0.05392822,46354.0,46352.0,1.21035315]
[1641389304013,0.10392822,46354.0,46352.0,1.21035315]
[1641389304814,0.05,46354.0,46353.0,0.29400692]
[1641389305015,0.04844,46354.0,46353.0,0.64854992]
[1641389305275,0.05550721,46355.0,46353.0,0.64854992]
[1641389305276,0.00157421,46355.0,46353.0,0.7511458]
[1641389305470,0.053913,46361.0,46354.0,0.67540045]
[1641389305668,0.107826,46365.0,46360.0,0.00127734]
[1641389305874,0.107826,46365.0,46361.0,0.66156447]
[1641389306069,0.0002,46368.0,46366.0,0.42814912]
[1641389306469,0.0002,46368.0,46367.0,0.354543]
[1641389306470,0.108021,46368.0,46367.0,0.354543]
[1641389306670,0.108021,46368.0,46365.0,0.107819]
[1641389306869,0.108021,46368.0,46366.0,0.354543]
[1641389307068,0.108021,46368.0,46365.0,0.107819]
[1641389307570,0.05,46367.0,46365.0,0.107819]
[1641389307971,0.108021,46368.0,46366.0,0.64803074]
[1641389308171,0.108021,46368.0,46367.0,0.0435]
[1641389308172,0.0002,46368.0,46367.0,0.0435]
[1641389308373,0.0002,46368.0,46367.0,0.398043]
[1641389308570,0.02044164,46370.0,46368.0,1.04]
[1641389308769,0.02044164,46370.0,46369.0,0.00124948]
[1641389309018,0.02044164,46370.0,46369.0,1.30579248]
[1641389309217,0.02044164,46370.0,46369.0,0.35579248]
[1641389309421,0.02044164,46370.0,46369.0,1.03507063]
[1641389309719,0.02044164,46370.0,46369.0,1.00557063]
[1641389310119,0.02044164,46370.0,46369.0,1.00432115]
[1641389310318,0.02044164,46370.0,46369.0,0.422444]
[1641389310521,0.02044164,46370.0,46369.0,1.64173639]
[1641389310719,0.02044164,46370.0,46369.0,1.22220395]
[1641389311520,0.02044164,46370.0,46369.0,0.445444]
[1641389311921,0.02044164,46370.0,46369.0,0.86044988]
[1641389312123,0.02044164,46370.0,46369.0,0.91173894]
[1641389312321,0.02044164,46370.0,46369.0,1.95673306]
[1641389312760,0.02044164,46370.0,46369.0,1.91973306]
[1641389313062,0.02044164,46370.0,46369.0,0.62973306]
[1641389313262,0.02044164,46370.0,46369.0,1.05973306]
[1641389313463,0.0001,46371.0,46370.0,0.95]
[1641389313661,0.0001,46371.0,46370.0,1.304543]
[1641389314864,0.0001,46371.0,46370.0,0.354543]
[1641389315465,0.0001,46371.0,46370.0,0.422543]
[1641389316710,0.0001,46371.0,46370.0,0.354543]
[1641389317311,0.0001,46371.0,46370.0,0.76055252]
[1641389317512,0.0001,46371.0,46370.0,0.82755252]
[1641389318718,0.00886021,46374.0,46371.0,0.354543]
[1641389319112,0.00886021,46374.0,46372.0,0.40693242]
[1641389319313,0.00886021,46374.0,46373.0,0.354543]
[1641389319514,0.00886021,46374.0,46373.0,0.65036032]
[1641389320013,0.00886021,46374.0,46373.0,0.354543]
[1641389320273,0.00886021,46374.0,46373.0,1.14022494]
[1641389321571,0.00886021,46374.0,46373.0,0.387543]
[1641389321970,0.00886021,46374.0,46373.0,0.68864513]
[1641389322175,0.00886021,46374.0,46373.0,0.387543]
[1641389323374,0.00886021,46374.0,46373.0,0.354543]
[1641389323575,0.00886021,46374.0,46373.0,0.387543]
[1641389324224,0.00886021,46374.0,46373.0,1.32582982]
[1641389324428,0.107781,46386.0,46373.0,1.46932982]
[1641389324624,0.05836593,46386.0,46382.0,0.0012108]
[1641389325023,0.05836593,46386.0,46378.0,0.107779]
[1641389325228,0.04836593,46386.0,46382.0,0.61482859]
[1641389325424,0.04836593,46386.0,46383.0,0.354543]
[1641389325425,0.04977812,46386.0,46383.0,0.354543]
[1641389325826,0.04977812,46386.0,46383.0,0.408436]
[1641389326525,0.00141219,46386.0,46383.0,0.495416]
[1641389326929,0.05530219,46386.0,46383.0,0.495416]
[1641389327526,0.05530219,46386.0,46383.0,0.505416]
[1641389327969,0.04530219,46386.0,46383.0,0.505416]
[1641389328168,0.04355077,46386.0,46383.0,0.505416]
[1641389328374,0.09355077,46386.0,46383.0,0.505416]
[1641389328567,0.04355077,46386.0,46383.0,0.505416]
[1641389328769,0.04355077,46386.0,46383.0,0.495416]
[1641389328972,0.04355077,46386.0,46383.0,0.78545024]
[1641389329169,0.02463624,46387.0,46383.0,0.78545024]
[1641389329572,9.558e-05,46386.0,46383.0,0.79545024]
[1641389329970,9.558e-05,46386.0,46383.0,0.78545024]
[1641389330171,9.558e-05,46386.0,46383.0,0.495416]
[1641389330470,9.558e-05,46386.0,46383.0,0.408436]
[1641389330870,9.558e-05,46386.0,46383.0,0.398436]
[1641389331522,9.558e-05,46386.0,46383.0,0.062893]
[1641389332420,9.558e-05,46386.0,46383.0,0.009]
[1641389332620,0.17852624,46387.0,46383.0,0.229]
[1641389332822,0.07852624,46387.0,46383.0,0.22]
[1641389333220,0.05,46386.0,46383.0,0.22]
[1641389333519,0.05,46386.0,46383.0,0.228]
[1641389333721,0.053895,46386.0,46383.0,0.228]
[1641389334124,0.053895,46386.0,46383.0,0.281896]
[1641389334321,0.103895,46386.0,46384.0,0.354435]
[1641389334521,0.103895,46386.0,46383.0,0.281896]
[1641389334720,0.103895,46386.0,46383.0,0.228]
[1641389334921,0.103895,46386.0,46383.0,0.22]
[1641389335367,0.05,46386.0,46385.0,0.69478206]
[1641389335767,0.05,46386.0,46384.0,0.74867706]
[1641389335966,0.05,46386.0,46384.0,0.69478206]
[1641389336970,0.05,46386.0,46385.0,0.69478206]
[1641389337569,0.05,46386.0,46385.0,0.70478206]
[1641389338271,0.05,46386.0,46385.0,0.01]
[1641389338872,0.05,46386.0,46385.0,0.354435]
[1641389339117,0.05,46386.0,46383.0,0.273897]
[1641389339516,0.103896,46386.0,46383.0,0.22]
[1641389339718,0.103896,46386.0,46383.0,0.23]
[1641389340318,0.053896,46386.0,46383.0,0.23]
[1641389340516,8.647e-05,46385.0,46384.0,0.354435]
[1641389341118,8.647e-05,46385.0,46383.0,0.22]
[1641389341619,8.647e-05,46385.0,46383.0,0.231]
[1641389342219,8.647e-05,46385.0,46384.0,0.354435]
[1641389342419,0.05008647,46385.0,46384.0,0.354435]
[1641389342620,8.647e-05,46385.0,46383.0,0.231]
[1641389342865,8.647e-05,46385.0,46383.0,0.22]
[1641389343666,8.647e-05,46385.0,46383.0,0.231]
[1641389344271,0.1577962,46386.0,46383.0,0.231]
[1641389344471,0.14788267,46386.0,46383.0,0.231]
[1641389344869,0.14788267,46386.0,46383.0,0.22]
[1641389345071,0.09398247,46386.0,46383.0,0.22]
[1641389345672,0.09398247,46386.0,46383.0,0.229]
[1641389346618,0.0435,46385.0,46383.0,0.229]
[1641389346818,0.0435,46385.0,46383.0,0.22]
[1641389347618,0.0565,46385.0,46383.0,0.22]
[1641389347818,0.301068,46384.0,46383.0,0.22]
[1641389348017,0.444568,46384.0,46383.0,0.22]
[1641389348218,0.494568,46384.0,46383.0,0.22]
[1641389348821,0.394568,46384.0,46383.0,0.22]
[1641389349020,0.344568,46384.0,46383.0,0.22]
[1641389349625,0.360568,46384.0,46383.0,0.22]
[1641389350465,0.410568,46384.0,46383.0,0.22]
[1641389350865,0.394568,46384.0,46383.0,0.22]
[1641389351065,0.39464577,46384.0,46383.0,0.22]
[1641389351267,0.38464577,46384.0,46383.0,0.22]
[1641389351665,0.40064577,46384.0,46383.0,0.22]
[1641389353068,0.38464577,46384.0,46383.0,0.22]
[1641389353267,0.38464577,46384.0,46375.0,0.28314228]
[1641389353469,0.16171427,46380.0,46375.0,0.28314228]
[1641389353669,0.05,46379.0,46375.0,0.28314228]
[1641389353868,0.05,46379.0,46372.0,0.34422901]
[1641389354116,0.05,46379.0,46374.0,0.053906]
[1641389354319,0.01607777,46384.0,46377.0,0.00123824]
[1641389354517,0.01607777,46384.0,46378.0,0.354435]
[1641389354717,0.17778277,46384.0,46377.0,0.00123824]
[1641389355024,0.10780922,46383.0,46373.0,0.58034053]
[1641389355219,0.17778277,46384.0,46377.0,0.053903]
[1641389355417,0.10781,46380.0,46378.0,0.354435]
[1641389356620,0.10781,46380.0,46379.0,0.69478206]
[1641389356621,0.16171137,46380.0,46379.0,0.69478206]
[1641389357018,0.10781,46380.0,46379.0,0.69478206]
[1641389357217,0.10781,46380.0,46379.0,1.04921706]
[1641389357623,0.10781,46380.0,46379.0,1.07921706]
[1641389358370,0.10781,46380.0,46379.0,0.03]
[1641389358971,0.10781,46380.0,46378.0,0.69221092]
[1641389359370,0.05390512,46379.0,46378.0,0.69221092]
[1641389359573,0.05390512,46379.0,46378.0,1.04664592]
[1641389359771,0.05390512,46379.0,46378.0,1.07664592]
[1641389359972,0.05390512,46379.0,46378.0,0.384435]
[1641389360473,0.10981,46380.0,46378.0,0.384435]
[1641389360671,0.10981,46380.0,46379.0,0.354435]
[1641389361071,0.10781,46380.0,46379.0,0.354435]
[1641389361520,0.10781,46380.0,46379.0,0.349435]
[1641389361715,0.10781,46380.0,46379.0,0.038]
[1641389361915,0.10781,46380.0,46379.0,0.73018409]
[1641389362114,0.10781,46380.0,46379.0,0.038]
[1641389363115,0.05390487,46379.0,46378.0,0.69218409]
[1641389363614,0.05490487,46379.0,46378.0,0.73018409]
[1641389363814,0.05490487,46379.0,46378.0,0.038]
[1641389364014,0.05490487,46379.0,46378.0,0.258]
[1641389364616,0.05490487,46379.0,46378.0,0.668]
[1641389364815,0.05490487,46379.0,46378.0,1.022466]
[1641389365014,0.05390487,46379.0,46378.0,0.984466]
[1641389365463,0.05390487,46379.0,46378.0,1.26665009]
[1641389365660,0.16178939,46380.0,46378.0,1.31265009]
[1641389365860,0.16178939,46380.0,46379.0,0.354466]
[1641389366360,0.16178939,46380.0,46378.0,0.3199]
[1641389366561,0.16178939,46380.0,46379.0,0.69329393]
[1641389366762,0.21568996,46380.0,46379.0,0.69329393]
[1641389367362,0.21568996,46380.0,46379.0,1.04775993]
[1641389367562,0.21568996,46380.0,46379.0,0.69329393]
[1641389367761,0.21568996,46380.0,46379.0,0.73829393]
[1641389368564,0.21568996,46380.0,46379.0,0.045]
[1641389369013,0.21568996,46380.0,46378.0,0.91329393]
[1641389369614,0.21568996,46380.0,46378.0,0.95029393]
[1641389369815,0.21568996,46380.0,46378.0,0.51903893]
[1641389370017,0.16178939,46380.0,46379.0,1.04]
[1641389370220,0.16178939,46380.0,46379.0,1.97272189]
[1641389370618,0.16178939,46380.0,46379.0,1.394466]
[1641389370815,0.10788439,46380.0,46379.0,3.42706778]
[1641389371018,0.10788439,46380.0,46379.0,3.6871377]
[1641389371216,0.10788439,46380.0,46379.0,2.38706778]
[1641389371417,0.10788439,46380.0,46379.0,2.03260178]
[1641389371623,0.10788439,46380.0,46379.0,2.06160178]
[1641389371815,0.10788439,46380.0,46379.0,0.84275995]
[1641389372216,0.10788439,46380.0,46379.0,0.6075343]
[1641389372772,0.10788439,46380.0,46379.0,0.029]
[1641389372966,0.10788439,46380.0,46378.0,0.5785343]
[1641389373170,0.05390478,46379.0,46378.0,0.5785343]
[1641389373368,0.36451123,46379.0,46378.0,0.5785343]
[1641389373570,0.36451123,46379.0,46378.0,0.1472593]
[1641389373768,0.36451123,46379.0,46378.0,0.046]
[1641389373769,0.37251123,46379.0,46378.0,0.046]
[1641389373967,0.37258477,46379.0,46378.0,0.046]
[1641389374367,0.77214777,46379.0,46378.0,0.046]
[1641389374967,0.76414777,46379.0,46378.0,0.22]
[1641389375171,0.86414777,46379.0,46378.0,0.22]
[1641389375467,0.053912,46376.0,46370.0,0.81375995]
[1641389375671,0.053911,46372.0,46369.0,0.83429695]
[1641389376615,0.10782375,46372.0,46369.0,0.83429695]
[1641389376914,0.053915,46371.0,46369.0,0.83429695]
[1641389377315,0.053915,46371.0,46369.0,0.020537]
[1641389377713,0.059915,46371.0,46369.0,0.063537]
[1641389378320,0.059915,46371.0,46370.0,0.69555304]
[1641389378721,0.059915,46371.0,46369.0,0.11745]
[1641389378919,0.103915,46371.0,46370.0,0.354466]
[1641389379219,0.05,46371.0,46369.0,0.88820995]
[1641389379418,0.05,46371.0,46370.0,0.354466]
[1641389379619,0.053911,46372.0,46370.0,0.408376]
[1641389379920,0.005,46371.0,46369.0,0.88029695]
[1641389380119,0.005,46371.0,46370.0,0.354466]
[1641389380363,0.005,46371.0,46369.0,0.88029695]
[1641389380561,0.058912,46371.0,46369.0,0.88029695]
[1641389380761,0.005,46371.0,46369.0,0.93420995]
[1641389380968,0.053911,46372.0,46370.0,0.354466]
[1641389381362,0.053911,46372.0,46369.0,0.83429695]
[1641389381664,0.107822,46372.0,46370.0,1.26905132]
[1641389381862,0.107822,46372.0,46370.0,2.08281127]
[1641389382062,0.107822,46372.0,46371.0,0.69545463]
[1641389382263,0.053911,46372.0,46371.0,0.69545463]
[1641389382463,0.053911,46372.0,46370.0,0.74545463]
[1641389382664,0.16173569,46372.0,46370.0,0.74545463]
[1641389383063,0.16173569,46372.0,46371.0,0.69545463]
[1641389383264,0.053911,46372.0,46371.0,0.69545463]
[1641389383662,0.053911,46372.0,46371.0,0.046]
[1641389383862,0.059911,46372.0,46371.0,0.046]
[1641389384322,0.054911,46372.0,46371.0,0.266]
[1641389384922,0.048911,46372.0,46371.0,0.22]
[1641389385525,0.048911,46372.0,46370.0,0.81375995]
[1641389385726,0.05501448,46372.0,46371.0,0.74092323]
[1641389386327,0.05501448,46372.0,46371.0,0.045]
[1641389386926,0.05501448,46372.0,46370.0,0.69592323]
[1641389386927,0.04901448,46372.0,46370.0,0.69592323]
[1641389387127,0.10293248,46372.0,46370.0,0.69592323]
[1641389387525,0.15684977,46372.0,46370.0,0.69592323]
[1641389387771,0.16284977,46372.0,46370.0,0.73492323]
[1641389388275,0.16350522,46372.0,46370.0,0.73492323]
[1641389389078,0.16350522,46372.0,46370.0,0.69592323]
[1641389389079,0.0935,46371.0,46370.0,0.69592323]
[1641389389274,0.0935,46371.0,46370.0,0.58031268]
[1641389389673,0.1045,46371.0,46370.0,0.58031268]
[1641389389874,0.1045,46371.0,46369.0,0.020537]
[1641389390074,0.3201996,46371.0,46369.0,0.020537]
[1641389390275,0.3201996,46371.0,46367.0,0.58031268]
[1641389390474,0.3201996,46371.0,46366.0,0.58031268]
[1641389390475,0.053925,46369.0,46366.0,0.58031268]
[1641389390675,0.0435,46368.0,46366.0,0.58031268]
[1641389391076,0.0435,46368.0,46365.0,0.58031268]
[1641389391717,0.0525,46368.0,46365.0,0.59031268]
[1641389392116,0.2142748,46368.0,46365.0,0.59031268]
[1641389392316,0.16035,46368.0,46365.0,0.59031268]
[1641389392517,0.16035,46368.0,46366.0,0.000123]
[1641389393119,0.05392376,46367.0,46366.0,0.000123]
[1641389393319,0.09742376,46367.0,46366.0,0.000123]
[1641389393824,0.11142376,46367.0,46366.0,0.005123]
[1641389394523,0.0575,46367.0,46366.0,0.005123]
[1641389394923,0.0435,46367.0,46366.0,0.000123]
[1641389395772,0.0575,46367.0,46366.0,0.005123]
[1641389396171,0.014,46367.0,46366.0,0.059038]
[1641389396375,0.014,46367.0,46366.0,1.439038]
[1641389396569,0.014,46367.0,46366.0,0.413504]
[1641389396772,0.014,46367.0,46366.0,0.359589]
[1641389396969,0.10784104,46368.0,46366.0,0.000123]
[1641389397771,0.11884104,46368.0,46366.0,0.009123]
[1641389397968,0.05,46367.0,46366.0,0.009123]
[1641389398368,0.05064898,46367.0,46366.0,0.009123]
[1641389399020,0.05064898,46367.0,46366.0,0.000123]
[1641389399818,0.05464898,46367.0,46366.0,0.019123]
[1641389401119,0.05064898,46367.0,46366.0,0.000123]
[1641389401623,0.00064898,46367.0,46366.0,0.000123]
[1641389401821,0.00264898,46367.0,46366.0,0.059123]
[1641389402224,0.00264898,46367.0,46366.0,2.21466899]
[1641389402421,0.00264898,46367.0,46366.0,4.63112856]
[1641389402622,0.00264898,46367.0,46366.0,0.41488776]
[1641389402871,0.00264898,46367.0,46366.0,0.52270176]
[1641389403270,0.00064898,46367.0,46366.0,0.88370176]
[1641389403871,0.00064898,46367.0,46366.0,0.93070176]
[1641389404275,0.00064898,46367.0,46366.0,0.51070176]
[1641389404871,0.00064898,46367.0,46366.0,0.81838748]
[1641389405073,0.00064898,46367.0,46366.0,0.77138748]
[1641389405273,0.00064898,46367.0,46366.0,1.65138748]
[1641389405873,0.00064898,46367.0,46366.0,1.70938748]
[1641389406073,0.00064898,46367.0,46366.0,1.80938748]
[1641389406522,0.053901,46371.0,46366.0,1.62531071]
[1641389406721,0.053901,46371.0,46367.0,0.354466]
[1641389406927,0.00010348,46372.0,46369.0,0.00123279]
[1641389407121,0.00010348,46372.0,46370.0,0.61827332]
[1641389407321,0.00010348,46372.0,46371.0,0.30362467]
[1641389407520,0.00010348,46372.0,46371.0,0.65809067]
[1641389407921,0.05400248,46372.0,46371.0,0.67509067]
[1641389408123,0.00010348,46372.0,46371.0,2.71978884]
[1641389408321,0.00010348,46372.0,46371.0,2.88146284]
[1641389408520,0.00010348,46372.0,46371.0,2.57783817]
[1641389408721,3.48e-06,46372.0,46371.0,1.86783817]
[1641389409123,0.00523079,46388.0,46372.0,0.31567231]
[1641389409124,0.053888,46384.0,46372.0,0.31567231]
[1641389409322,0.053888,46384.0,46381.0,0.00126936]
[1641389409526,0.053888,46384.0,46382.0,0.354466]
[1641389409722,0.02463624,46387.0,46383.0,0.354466]
[1641389410124,0.02463624,46387.0,46386.0,0.32394813]
[1641389410370,0.02463624,46387.0,46386.0,0.354466]
[1641389410570,0.02463624,46387.0,46384.0,0.053884]
[1641389410769,0.02463624,46387.0,46381.0,0.009]
[1641389410970,0.07463624,46387.0,46382.0,0.354466]
[1641389411169,0.02463624,46387.0,46382.0,0.354466]
[1641389411371,0.07463624,46387.0,46382.0,0.354466]
[1641389411771,0.21557675,46385.0,46382.0,0.360466]
[1641389412178,0.05,46383.0,46382.0,0.414362]
[1641389413173,0.05,46383.0,46382.0,0.408362]
[1641389413374,0.053894,46384.0,46382.0,0.408362]
[1641389413574,0.103894,46384.0,46383.0,0.29774405]
[1641389413774,0.053894,46384.0,46383.0,0.65221005]
[1641389414226,0.0013927,46385.0,46383.0,0.65221005]
[1641389414425,0.0013927,46385.0,46384.0,2.15632489]
[1641389414624,0.0013927,46385.0,46384.0,2.25756388]
[1641389415227,9.27e-05,46385.0,46384.0,2.25756388]
[1641389415624,9.27e-05,46385.0,46384.0,3.40256388]
[1641389415823,9.27e-05,46385.0,46384.0,3.41656388]
[1641389416425,9.27e-05,46385.0,46384.0,2.44156388]
[1641389416623,9.27e-05,46385.0,46384.0,1.06156388]
[1641389417227,9.27e-05,46385.0,46384.0,1.04756388]
[1641389417873,9.27e-05,46385.0,46384.0,0.89300647]
[1641389418074,9.27e-05,46385.0,46384.0,0.59358399]
[1641389418271,9.27e-05,46385.0,46384.0,0.99387198]
[1641389418671,9.27e-05,46385.0,46384.0,0.69358399]
[1641389419072,0.13238924,46387.0,46384.0,0.69358399]
[1641389419272,0.13238924,46387.0,46386.0,0.354466]
[1641389419473,0.07851224,46387.0,46386.0,0.354466]
[1641389419673,0.08734498,46387.0,46386.0,0.354466]
[1641389419874,0.08734498,46387.0,46386.0,0.467466]
[1641389420080,0.03346898,46387.0,46386.0,0.467466]
[1641389420476,0.03346898,46387.0,46386.0,1.35581338]
[1641389420876,0.08346898,46387.0,46386.0,1.35581338]
[1641389421077,0.08346898,46387.0,46386.0,1.34281338]
[1641389421523,0.03346898,46387.0,46386.0,1.34281338]
[1641389421824,0.00567347,46389.0,46388.0,1.14528921]
[1641389422022,0.00567347,46389.0,46388.0,1.91510827]
[1641389422222,0.00567347,46389.0,46388.0,1.59975521]
[1641389422421,0.00567347,46389.0,46388.0,0.45475521]
[1641389422626,0.00567347,46389.0,46388.0,0.354466]
[1641389423820,0.00567347,46389.0,46388.0,0.366466]
[1641389425300,0.00567347,46389.0,46388.0,0.354466]
[1641389425593,0.054372,46390.0,46389.0,1.05]
[1641389425792,0.054372,46390.0,46389.0,1.404466]
[1641389425992,0.054372,46390.0,46389.0,1.504466]
[1641389426597,0.0003,46392.0,46389.0,1.14474597]
[1641389426794,0.13004323,46394.0,46391.0,0.354466]
[1641389426795,0.12564323,46394.0,46391.0,0.354466]
[1641389426993,0.12564323,46394.0,46390.0,0.35571553]
[1641389426994,0.12564323,46394.0,46393.0,0.32371042]
[1641389427194,0.12564323,46394.0,46393.0,0.67817642]
[1641389427394,0.12564323,46394.0,46393.0,0.67947352]
[1641389427595,0.02210023,46394.0,46393.0,0.77947352]
[1641389427998,0.02210023,46394.0,46393.0,0.79747352]
[1641389428596,0.02210023,46394.0,46393.0,0.69747352]
[1641389428797,0.02204023,46394.0,46393.0,0.70261667]
[1641389429035,0.02204023,46394.0,46393.0,0.37890625]
[1641389429230,0.07204023,46394.0,46393.0,0.36090625]
[1641389429426,0.02204023,46394.0,46393.0,0.36090625]
[1641389429827,0.02204023,46394.0,46393.0,0.69234298]
[1641389430027,0.02204023,46394.0,46393.0,0.9519007]
[1641389431130,0.02204023,46394.0,46393.0,1.02328086]
[1641389431334,0.02204023,46394.0,46393.0,0.93584062]
[1641389431631,0.02204023,46394.0,46393.0,1.03584062]
[1641389431933,0.02204023,46394.0,46393.0,2.88412059]
[1641389432130,0.0004,46395.0,46394.0,1.38]
[1641389432332,0.0004,46395.0,46394.0,1.734466]
[1641389432529,0.0004,46395.0,46394.0,1.834466]
[1641389432981,0.0004,46395.0,46394.0,2.979466]
[1641389433977,0.0004,46395.0,46394.0,2.991466]
[1641389434677,0.0004,46395.0,46394.0,1.611466]
[1641389435078,0.0004,46406.0,46394.0,1.611466]
[1641389435280,0.10398235,46407.0,46405.0,0.64730143]
[1641389435484,0.09898235,46407.0,46406.0,0.64588297]
[1641389435680,0.09898235,46407.0,46406.0,0.354466]
[1641389435681,0.07056235,46407.0,46406.0,0.354466]
[1641389435878,0.12442135,46407.0,46406.0,0.354466]
[1641389436924,0.12442135,46407.0,46405.0,0.65530143]
[1641389437124,0.12442135,46407.0,46405.0,0.64730143]
[1641389437729,0.1782857,46407.0,46405.0,0.64730143]
[1641389437926,0.1782857,46407.0,46405.0,0.65430143]
[1641389439128,0.1782857,46407.0,46405.0,0.64730143]
[1641389439526,0.1113263,46407.0,46405.0,0.64730143]
[1641389439925,0.1113263,46407.0,46405.0,0.65330143]
[1641389440371,0.1113263,46407.0,46405.0,0.69717043]
[1641389441174,0.1613263,46407.0,46405.0,0.69117043]
[1641389441575,0.1113263,46407.0,46405.0,0.69117043]
[1641389441975,0.1113263,46407.0,46405.0,0.69817043]
[1641389442376,0.1651943,46407.0,46405.0,0.69817043]
[1641389442577,0.1651943,46407.0,46405.0,0.69317043]
[1641389443076,0.00012322,46406.0,46405.0,0.69317043]
[1641389443282,0.00012322,46406.0,46405.0,0.69132525]
[1641389443880,0.00012322,46406.0,46405.0,0.69832525]
[1641389444129,0.00012322,46406.0,46405.0,0.64445625]
[1641389444328,0.00012322,46406.0,46405.0,0.63930143]
[1641389445129,0.00012322,46406.0,46405.0,0.63230143]
[1641389445330,0.00012322,46406.0,46405.0,0.80230143]
[1641389445530,0.00012322,46406.0,46405.0,0.85616943]
[1641389445835,0.00012322,46406.0,46405.0,0.80230143]
[1641389446030,0.00012322,46406.0,46405.0,0.80830143]
[1641389446231,0.00012322,46406.0,46405.0,0.80956118]
[1641389446432,0.00012322,46406.0,46405.0,0.86343018]
[1641389447029,0.00012322,46406.0,46405.0,1.21663643]
[1641389447230,0.26828935,46407.0,46405.0,1.21063643]
[1641389447429,0.26828935,46407.0,46405.0,0.85617043]
[1641389447629,0.31828935,46407.0,46405.0,0.85617043]
[1641389447872,0.31828935,46407.0,46405.0,0.86317043]
[1641389448770,0.37215216,46407.0,46405.0,0.86317043]
[1641389449272,0.37215216,46407.0,46405.0,0.85617043]
[1641389449471,0.37215216,46407.0,46405.0,0.86099791]
[1641389450072,0.37215216,46407.0,46405.0,0.86699791]
[1641389451176,0.37215216,46407.0,46406.0,1.21834741]
[1641389451373,0.31828935,46407.0,46406.0,1.57281341]
[1641389452026,0.31828935,46407.0,46406.0,1.57881341]
[1641389452427,0.02548935,46407.0,46406.0,1.57881341]
[1641389452628,0.0043,46409.0,46408.0,1.145]
[1641389452830,0.0002,46411.0,46409.0,2.405]
[1641389453027,0.053849,46411.0,46410.0,0.397966]
[1641389453226,0.107699,46411.0,46410.0,0.397966]
[1641389453425,0.00131863,46412.0,46410.0,0.497966]
[1641389453624,0.00131863,46412.0,46411.0,1.484466]
[1641389453827,0.00131863,46412.0,46411.0,1.48568191]
[1641389453828,0.00143572,46412.0,46411.0,1.48568191]
[1641389454126,0.0004,46414.0,46412.0,1.644466]
[1641389454325,0.0004,46414.0,46413.0,1.114466]
[1641389454626,0.0004,46414.0,46413.0,2.451586]
[1641389454832,0.0004,46414.0,46413.0,1.306586]
[1641389455277,0.03644401,46416.0,46414.0,0.33]
[1641389455575,0.03644401,46416.0,46415.0,0.354466]
[1641389455975,0.03644401,46416.0,46415.0,0.454466]
[1641389456174,0.03644401,46416.0,46415.0,0.73206347]